bitfinex/quotes_BTCUSD_20240918
["timestamp","ask_amount","ask_price","bid_price","bid_amount"]
[1726661817924,1.0327749,59822.0,59821.0,0.0071034]
[1726661818160,1.3750999,59822.0,59821.0,0.0071034]
[1726661820401,1.0177749,59822.0,59821.0,0.0071034]
[1726661820677,0.6834499,59822.0,59821.0,0.0071034]
[1726661820892,0.6834499,59822.0,59821.0,0.5845984]
[1726661820893,0.01890923,59822.0,59821.0,0.5845984]
[1726661821112,0.01890923,59822.0,59821.0,0.2502684]
[1726661821377,0.008,59822.0,59821.0,0.2502684]
[1726661821701,0.008,59822.0,59821.0,0.0831034]
[1726661821853,0.17652368,59822.0,59821.0,0.1192834]
[1726661822067,1.497048,59822.0,59821.0,0.0432834]
[1726661822282,1.497048,59822.0,59821.0,0.0071034]
[1726661822503,1.489048,59822.0,59821.0,0.0071034]
[1726661823172,1.33455235,59822.0,59821.0,0.0071034]
[1726661823816,0.16852368,59822.0,59821.0,0.0071034]
[1726661824038,0.16852368,59822.0,59821.0,0.0432834]
[1726661824039,0.50284868,59822.0,59821.0,0.0432834]
[1726661824503,0.16852368,59822.0,59821.0,0.0432834]
[1726661824718,0.17052368,59822.0,59821.0,0.0432834]
[1726661824956,0.00336168,59822.0,59821.0,0.8791084]
[1726661825219,0.4772,59837.0,59822.0,0.002]
[1726661825384,0.1759201,59835.0,59822.0,0.334325]
[1726661825604,0.167142,59830.0,59825.0,0.501459]
[1726661825827,0.167142,59830.0,59827.0,0.167148]
[1726661826067,0.334265,59833.0,59825.0,0.167153]
[1726661826263,0.01286643,59829.0,59824.0,0.334309]
[1726661826487,0.167141,59830.0,59826.0,0.167149]
[1726661826693,0.167141,59830.0,59823.0,0.334318]
[1726661826694,0.01286643,59828.0,59827.0,0.167148]
[1726661826981,0.01286643,59828.0,59827.0,0.203328]
[1726661827837,0.01286643,59828.0,59827.0,0.03618]
[1726661828405,0.01286643,59828.0,59827.0,0.203328]
[1726661828653,0.01286643,59828.0,59827.0,0.03618]
[1726661829174,0.01286643,59828.0,59827.0,0.203328]
[1726661829399,0.01286643,59828.0,59827.0,0.204328]
[1726661829594,0.01286643,59828.0,59827.0,0.205149]
[1726661829827,1.0116471,59828.0,59827.0,0.038001]
[1726661830228,1.0116471,59828.0,59827.0,0.001821]
[1726661831165,1.03787196,59828.0,59827.0,0.001821]
[1726661831432,1.37216296,59828.0,59827.0,0.001821]
[1726661831682,1.37216296,59828.0,59827.0,0.000821]
[1726661832554,1.37216296,59828.0,59821.0,0.0071034]
[1726661832555,0.501487,59822.0,59821.0,0.0029244]
[1726661832766,0.67735892,59822.0,59821.0,0.0391044]
[1726661832991,1.01168392,59822.0,59821.0,0.0391044]
[1726661833214,0.01281825,59822.0,59821.0,0.0391044]
[1726661833688,0.01281825,59822.0,59821.0,0.2062694]
[1726661834212,0.01281825,59822.0,59821.0,0.0391044]
[1726661834390,0.51430525,59822.0,59821.0,0.0391044]
[1726661834868,0.17998025,59822.0,59821.0,0.0391044]
[1726661835095,0.01281825,59822.0,59821.0,0.0391044]
[1726661835335,0.18098025,59822.0,59821.0,0.0401044]
[1726661836627,0.01381825,59822.0,59821.0,0.0401044]
[1726661836843,0.01381825,59822.0,59821.0,0.2072694]
[1726661837066,0.01381825,59822.0,59821.0,0.0401044]
[1726661838625,0.51530525,59822.0,59821.0,0.0401044]
[1726661838833,0.01381825,59822.0,59821.0,0.0401044]
[1726661839043,0.18098025,59822.0,59821.0,0.0401044]
[1726661839251,0.51530525,59822.0,59821.0,0.0039244]
[1726661839457,0.18098025,59822.0,59821.0,0.0039244]
[1726661839639,0.51530525,59822.0,59821.0,0.0039244]
[1726661839864,0.01381825,59822.0,59821.0,0.1710894]
[1726661840076,0.01381825,59822.0,59821.0,0.0029244]
[1726661840077,0.01281825,59822.0,59821.0,0.0029244]
[1726661840302,0.04944553,59833.0,59821.0,0.0029244]
[1726661840513,0.17998293,59822.0,59821.0,0.0029244]
[1726661840736,0.167162,59822.0,59821.0,0.0029244]
[1726661840944,0.51430794,59822.0,59821.0,0.0029244]
[1726661841169,0.51430794,59822.0,59821.0,0.0521844]
[1726661841397,0.84863294,59822.0,59821.0,0.0521844]
[1726661841599,0.51430794,59822.0,59821.0,0.0521844]
[1726661841811,0.51530794,59822.0,59821.0,0.0540064]
[1726661842093,0.51430794,59822.0,59821.0,0.0530064]
[1726661842316,0.18162694,59822.0,59821.0,0.0530064]
[1726661842564,0.51695194,59822.0,59821.0,0.0540064]
[1726661842804,0.51595194,59822.0,59821.0,0.0530064]
[1726661843027,0.51595194,59822.0,59821.0,0.0540064]
[1726661844270,0.18162694,59822.0,59821.0,0.0540064]
[1726661844825,0.01446494,59822.0,59821.0,0.2211714]
[1726661844853,0.01446494,59822.0,59821.0,0.5555014]
[1726661845179,0.001644,59822.0,59821.0,0.2211714]
[1726661845605,0.01449383,59822.0,59821.0,0.2211714]
[1726661845813,0.00296875,59822.0,59821.0,0.2211714]
[1726661846459,0.00296875,59822.0,59821.0,0.5555014]
[1726661846896,0.001644,59822.0,59821.0,0.5555014]
[1726661847149,0.001644,59822.0,59821.0,0.8898314]
[1726661847601,0.001644,59822.0,59821.0,0.5555014]
[1726661848070,0.001644,59822.0,59821.0,0.0540064]
[1726661848261,0.001644,59822.0,59821.0,0.2211714]
[1726661848507,0.01449383,59822.0,59821.0,0.5555014]
[1726661848732,0.00296875,59822.0,59821.0,0.2211714]
[1726661849155,0.00296875,59822.0,59821.0,0.5555014]
[1726661850101,0.00296875,59822.0,59821.0,0.2211714]
[1726661850523,0.00296875,59822.0,59821.0,0.0540064]
[1726661850750,0.16296875,59822.0,59821.0,0.5555014]
[1726661851457,0.16296875,59822.0,59821.0,0.2211714]
[1726661852830,0.16296875,59822.0,59821.0,0.5555014]
[1726661854396,0.16296875,59822.0,59821.0,0.0540064]
[1726661854575,0.16296875,59822.0,59821.0,0.2211714]
[1726661855247,0.16296875,59822.0,59821.0,0.5555014]
[1726661855684,0.16296875,59822.0,59821.0,0.8898314]
[1726661855905,0.161644,59822.0,59821.0,0.8898314]
[1726661856129,0.161644,59822.0,59821.0,1.2241614]
[1726661856358,0.161644,59822.0,59821.0,1.3205614]
[1726661857467,0.161644,59822.0,59821.0,1.3195614]
[1726661857689,0.162644,59822.0,59821.0,1.3205614]
[1726661858116,0.161644,59822.0,59821.0,1.3195614]
[1726661859060,0.161644,59822.0,59821.0,1.4195614]
[1726661859263,0.161644,59822.0,59821.0,1.61261507]
[1726661859533,0.161644,59822.0,59821.0,1.94694507]
[1726661859761,0.161644,59822.0,59821.0,2.09537336]
[1726661859986,0.161644,59822.0,59821.0,2.41326899]
[1726661860214,0.162644,59822.0,59821.0,2.41626899]
[1726661860458,0.161644,59822.0,59821.0,2.41326899]
[1726661860672,0.161644,59822.0,59821.0,2.33795074]
[1726661860980,0.162644,59822.0,59821.0,2.46623877]
[1726661861131,0.162644,59822.0,59821.0,2.46613559]
[1726661861851,0.162644,59822.0,59821.0,2.35095475]
[1726661862469,0.162644,59822.0,59821.0,2.45110806]
[1726661863212,0.162644,59822.0,59821.0,2.41596458]
[1726661863688,0.162644,59822.0,59821.0,2.10815497]
[1726661864150,0.162644,59822.0,59821.0,2.41558876]
[1726661864401,0.162644,59822.0,59821.0,2.34047174]
[1726661864628,0.162644,59822.0,59821.0,2.41557084]
[1726661864885,0.162644,59822.0,59821.0,2.15822099]
[1726661865116,0.162644,59822.0,59821.0,2.10815497]
[1726661865338,0.162644,59822.0,59821.0,2.41547615]
[1726661867236,0.162644,59822.0,59821.0,2.4154086]
[1726661867544,0.162644,59822.0,59821.0,0.0766163]
[1726661867846,0.162644,59822.0,59821.0,0.0560064]
[1726661868165,0.664131,59822.0,59821.0,0.0560064]
[1726661868405,1.00889569,59822.0,59821.0,0.0560064]
[1726661868559,1.00789569,59822.0,59821.0,0.0530064]
[1726661868758,1.00889569,59822.0,59821.0,0.0560064]
[1726661870757,1.00789569,59822.0,59821.0,0.0530064]
[1726661871316,0.67357069,59822.0,59821.0,0.0530064]
[1726661871437,0.67457069,59822.0,59821.0,0.0560064]
[1726661877017,0.34024569,59822.0,59821.0,0.0560064]
[1726661877326,0.67457069,59822.0,59821.0,0.0560064]
[1726661877888,1.00889569,59822.0,59821.0,0.0560064]
[1726661878438,1.10699569,59822.0,59821.0,0.0560064]
[1726661878674,2.01699936,59822.0,59821.0,0.0560064]
[1726661878895,2.01699936,59822.0,59821.0,0.0067464]
[1726661879121,2.01927105,59822.0,59821.0,0.0067464]
[1726661879335,2.01827105,59822.0,59821.0,0.0037464]
[1726661879756,2.01827105,59822.0,59810.0,0.000821]
[1726661879757,0.501579,59811.0,59810.0,0.000821]
[1726661879976,0.931465,59811.0,59810.0,0.000821]
[1726661880219,1.265851,59811.0,59810.0,0.000821]
[1726661880446,1.27866021,59811.0,59810.0,0.000821]
[1726661881157,0.84877421,59811.0,59810.0,0.000821]
[1726661881409,0.01280921,59811.0,59810.0,0.000821]
[1726661881618,0.01280921,59811.0,59810.0,0.168017]
[1726661881835,0.167186,59814.0,59810.0,0.217277]
[1726661882057,0.167183,59815.0,59811.0,0.167192]
[1726661882274,0.167183,59815.0,59811.0,0.216452]
[1726661883231,0.239944,59822.0,59811.0,0.04926]
[1726661883466,0.167186,59814.0,59811.0,0.04926]
[1726661883715,0.167186,59814.0,59811.0,0.05226]
[1726661883716,0.16719,59812.0,59811.0,0.05226]
[1726661884180,0.16868985,59812.0,59811.0,0.05226]
[1726661885118,0.16868985,59812.0,59811.0,0.04926]
[1726661885563,0.50307085,59812.0,59811.0,0.05226]
[1726661885924,0.00149985,59812.0,59811.0,0.04926]
[1726661886087,0.16868985,59812.0,59811.0,0.05226]
[1726661886344,0.16968985,59812.0,59811.0,0.05226]
[1726661887127,0.50407085,59812.0,59811.0,0.05226]
[1726661888016,0.00249985,59812.0,59811.0,0.05226]
[1726661888531,0.00249985,59812.0,59811.0,0.888225]
[1726661889057,0.00249985,59812.0,59811.0,1.222611]
[1726661889058,0.001,59812.0,59811.0,1.222611]
[1726661890026,0.161644,59822.0,59819.0,0.16717]
[1726661890027,0.328807,59822.0,59819.0,0.16717]
[1726661890258,0.328807,59822.0,59821.0,0.167165]
[1726661890259,0.161644,59822.0,59821.0,0.167165]
[1726661890485,0.161644,59822.0,59821.0,0.835825]
[1726661890721,0.161644,59822.0,59821.0,1.170155]
[1726661891428,0.161644,59822.0,59821.0,1.219415]
[1726661891650,0.161644,59822.0,59821.0,1.41246867]
[1726661892314,0.161644,59822.0,59821.0,1.48916867]
[1726661893796,0.162644,59822.0,59821.0,1.50316867]
[1726661899414,0.162644,59822.0,59821.0,1.47316867]
[1726661900357,0.162644,59822.0,59821.0,1.39646867]
[1726661900581,0.162644,59822.0,59821.0,1.42646867]
[1726661900824,0.162644,59822.0,59821.0,1.233415]
[1726661901067,0.162644,59822.0,59821.0,0.564755]
[1726661901532,0.162644,59822.0,59821.0,0.06326]
[1726661901533,0.329806,59822.0,59821.0,0.06326]
[1726661902053,0.664131,59822.0,59821.0,0.06326]
[1726661902085,0.67458328,59822.0,59821.0,0.06326]
[1726661902694,0.17309628,59822.0,59821.0,0.06326]
[1726661903013,0.67458328,59822.0,59821.0,0.06326]
[1726661903200,0.83763695,59822.0,59821.0,0.06326]
[1726661903428,1.17096195,59822.0,59821.0,0.04926]
[1726661903913,1.17096195,59822.0,59821.0,0.05726]
[1726661903914,1.60588695,59822.0,59821.0,0.05726]
[1726661904143,1.60488695,59822.0,59821.0,0.04926]
[1726661904375,1.60488695,59822.0,59821.0,0.05226]
[1726661906756,1.6073106,59822.0,59821.0,0.05226]
[1726661907900,1.2729856,59822.0,59821.0,0.05226]
[1726661909773,0.77560693,59822.0,59821.0,0.05226]
[1726661910275,0.8018337,59822.0,59821.0,0.05226]
[1726661910742,1.1361587,59822.0,59821.0,0.05226]
[1726661912121,0.8018337,59822.0,59821.0,0.05226]
[1726661912588,0.2007467,59822.0,59821.0,0.05226]
[1726661912830,0.2007467,59822.0,59821.0,0.553755]
[1726661913071,0.17451993,59822.0,59821.0,1.222415]
[1726661913525,0.161644,59822.0,59821.0,1.222415]
[1726661913756,0.161644,59822.0,59821.0,0.888085]
[1726661914465,0.161644,59822.0,59821.0,0.885085]
[1726661914691,0.162644,59822.0,59821.0,0.893085]
[1726661915149,0.161644,59822.0,59821.0,0.885085]
[1726661915345,0.162644,59822.0,59821.0,0.893085]
[1726661918176,0.162644,59822.0,59821.0,0.893906]
[1726661918413,0.162644,59822.0,59821.0,1.39128967]
[1726661918656,0.162644,59822.0,59821.0,1.42328967]
[1726661919437,0.162644,59822.0,59821.0,1.52328967]
[1726661919917,0.162644,59822.0,59821.0,1.90764176]
[1726661920383,0.162644,59822.0,59821.0,1.85761967]
[1726661922102,0.162644,59822.0,59821.0,1.90764176]
[1726661922573,0.162644,59822.0,59821.0,1.85761967]
[1726661923054,0.162644,59822.0,59821.0,1.52328967]
[1726661923548,0.162644,59822.0,59821.0,1.85761967]
[1726661923797,0.162644,59822.0,59821.0,1.52328967]
[1726661924046,0.162644,59822.0,59821.0,1.85761967]
[1726661926642,0.162644,59822.0,59821.0,1.52128967]
[1726661927110,0.162644,59822.0,59821.0,1.52328967]
[1726661932423,0.162644,59822.0,59821.0,1.57330544]
[1726661933819,0.162644,59822.0,59821.0,1.5937822]
[1726661935032,0.162644,59822.0,59821.0,1.54376643]
[1726661935262,0.162644,59822.0,59821.0,1.52328967]
[1726661935497,0.162644,59822.0,59821.0,1.54376643]
[1726661936216,0.162644,59822.0,59821.0,1.87809643]
[1726661938465,0.161644,59822.0,59821.0,1.87009643]
[1726661938722,0.162644,59822.0,59821.0,1.88109643]
[1726661941075,0.162644,59822.0,59821.0,1.86061967]
[1726661941094,0.162644,59822.0,59821.0,1.88107573]
[1726661941538,0.162644,59822.0,59821.0,1.93110561]
[1726661941717,0.162644,59822.0,59821.0,1.88107573]
[1726661942977,0.162644,59822.0,59821.0,1.70124138]
[1726661943188,0.162644,59822.0,59821.0,1.7512723]
[1726661943455,0.162644,59822.0,59821.0,2.0856023]
[1726661943703,0.162644,59822.0,59821.0,2.03557138]
[1726661943957,0.162644,59822.0,59821.0,2.08550628]
[1726661945137,0.162644,59822.0,59821.0,2.08550616]
[1726661946342,0.162644,59822.0,59821.0,2.08542758]
[1726661946713,0.162644,59822.0,59821.0,2.08542823]
[1726661947887,0.162644,59822.0,59821.0,2.08542676]
[1726661948326,0.162644,59822.0,59821.0,2.03539676]
[1726661950131,0.162644,59822.0,59821.0,1.69906676]
[1726661950359,0.162644,59822.0,59821.0,1.77413387]
[1726661950815,0.162644,59822.0,59821.0,1.69906676]
[1726661951578,0.162644,59822.0,59821.0,1.74912428]
[1726661952065,0.162644,59822.0,59821.0,1.69906676]
[1726661952272,0.162644,59822.0,59821.0,2.00900215]
[1726661953254,0.162644,59822.0,59821.0,1.93393504]
[1726661954383,0.093542,59843.0,59837.0,0.03]
[1726661954684,0.001642,59843.0,59842.0,0.99002765]
[1726661955140,0.001642,59843.0,59842.0,1.32424065]
[1726661955471,0.001642,59843.0,59842.0,1.90076732]
[1726661955994,0.001642,59843.0,59842.0,1.99113151]
[1726661956034,0.001642,59843.0,59842.0,2.00099005]
[1726661956186,0.001642,59843.0,59842.0,1.93071311]
[1726661956315,0.001642,59843.0,59842.0,2.24361897]
[1726661956543,0.001642,59843.0,59842.0,2.24352716]
[1726661956772,0.001642,59843.0,59842.0,2.29360627]
[1726661957235,0.001642,59843.0,59842.0,2.16840849]
[1726661957725,0.001642,59843.0,59842.0,2.17640849]
[1726661958212,0.001642,59843.0,59842.0,1.73993543]
[1726661958482,0.001642,59843.0,59842.0,1.38905867]
[1726661959144,0.001642,59843.0,59842.0,1.51385867]
[1726661959372,0.001642,59843.0,59842.0,2.28876903]
[1726661959828,0.001642,59843.0,59842.0,2.28763821]
[1726661960568,0.001642,59843.0,59842.0,2.62185121]
[1726661960815,0.001642,59843.0,59842.0,2.62385121]
[1726661961478,0.001642,59843.0,59842.0,2.61685121]
[1726661962010,0.001642,59843.0,59842.0,2.62885121]
[1726661962029,0.001642,59843.0,59842.0,2.60884634]
[1726661962187,0.001642,59843.0,59842.0,2.61672323]
[1726661962419,0.001642,59843.0,59842.0,2.63072323]
[1726661963156,0.001642,59857.0,59856.0,1.01983265]
[1726661963376,0.001642,59857.0,59856.0,1.85115632]
[1726661963605,0.001642,59857.0,59856.0,1.90041632]
[1726661964546,0.001642,59857.0,59856.0,2.40255132]
[1726661965306,0.001642,59857.0,59856.0,2.48594756]
[1726661965325,0.001642,59857.0,59856.0,2.43603132]
[1726661966170,0.001642,59857.0,59856.0,2.42803132]
[1726661966671,0.001642,59857.0,59856.0,2.45103132]
[1726661967608,0.001642,59857.0,59856.0,2.46503132]
[1726661968237,0.001642,59857.0,59856.0,2.45103132]
[1726661968558,0.001642,59857.0,59856.0,2.46503132]
[1726661968789,0.099742,59874.0,59865.0,0.631127]
[1726661969027,0.099742,59874.0,59865.0,0.94867632]
[1726661969226,0.099742,59874.0,59865.0,1.66610632]
[1726661969488,0.099742,59874.0,59865.0,2.00019132]
[1726661971281,0.099742,59874.0,59865.0,1.66610632]
[1726661971483,0.099742,59874.0,59865.0,1.68010632]
[1726661972617,0.099742,59874.0,59865.0,2.07619132]
[1726661974220,0.099742,59874.0,59865.0,2.06219132]
[1726661974924,0.099742,59874.0,59865.0,2.07619132]
[1726661976338,0.0056125,59866.0,59865.0,2.07619132]
[1726661979872,0.0056125,59866.0,59865.0,2.25239132]
[1726661980108,0.0056125,59866.0,59865.0,2.07619132]
[1726661980349,0.0056125,59866.0,59865.0,2.43327632]
[1726661981329,0.001642,59874.0,59870.0,0.593085]
[1726661981590,0.001642,59874.0,59870.0,1.45043132]
[1726661981829,0.001642,59874.0,59870.0,1.78448832]
[1726661982068,0.001642,59874.0,59870.0,2.11854532]
[1726661983004,0.001642,59874.0,59870.0,2.09554532]
[1726661984512,0.001642,59874.0,59870.0,1.69948832]
[1726661984740,0.001642,59874.0,59870.0,1.71348832]
[1726661984957,0.001642,59874.0,59870.0,1.72748832]
[1726661985205,0.001642,59874.0,59870.0,1.17545567]
[1726661985431,0.001642,59874.0,59870.0,0.912402]
[1726661985674,0.001642,59874.0,59870.0,0.550345]
[1726661986175,0.01379634,59871.0,59870.0,0.898402]
[1726661986403,0.001642,59871.0,59870.0,0.564345]
[1726661986656,0.001642,59871.0,59870.0,0.898402]
[1726661987791,0.001642,59871.0,59870.0,1.05289765]
[1726661988014,0.001642,59871.0,59870.0,1.03889765]
[1726661988476,0.001642,59871.0,59870.0,0.71884065]
[1726661988964,0.001642,59871.0,59870.0,1.58000832]
[1726661989174,0.001642,59871.0,59870.0,1.55000832]
[1726661989393,0.001642,59871.0,59870.0,1.21595132]
[1726661990322,0.001642,59871.0,59870.0,1.05289765]
[1726661993292,0.001642,59871.0,59870.0,1.58000832]
[1726661996711,0.001642,59871.0,59870.0,1.24595132]
[1726661997343,0.001642,59871.0,59870.0,1.58000832]
[1726661998030,0.001642,59871.0,59870.0,1.09145567]
[1726661998206,0.001642,59871.0,59870.0,1.06145567]
[1726661998626,0.001642,59871.0,59870.0,0.06326]
[1726661999049,0.01379889,59871.0,59870.0,0.06326]
[1726661999270,0.35782389,59871.0,59870.0,0.06326]
[1726661999480,0.19079889,59871.0,59870.0,0.06326]
[1726662001000,0.19079889,59871.0,59870.0,0.230288]
[1726662001889,0.19079889,59871.0,59870.0,0.564345]
[1726662003638,0.19079889,59871.0,59870.0,0.898402]
[1726662004080,0.178642,59871.0,59870.0,0.898402]
[1726662004314,0.178642,59871.0,59870.0,0.564345]
[1726662004788,0.178642,59871.0,59870.0,0.898402]
[1726662005055,0.178642,59871.0,59870.0,0.230288]
[1726662005289,0.19076613,59871.0,59870.0,0.230288]
[1726662006024,0.35779113,59871.0,59870.0,0.06326]
[1726662006272,0.69184213,59871.0,59870.0,0.06326]
[1726662007299,1.35994413,59871.0,59870.0,0.06326]
[1726662007547,1.02589313,59871.0,59870.0,0.06326]
[1726662009023,1.02756313,59871.0,59870.0,0.06326]
[1726662009790,1.02756313,59871.0,59870.0,0.04926]
[1726662010363,1.02756313,59871.0,59870.0,0.05326]
[1726662010526,1.02756313,59871.0,59870.0,0.04926]
[1726662013658,1.36161413,59871.0,59870.0,0.04926]
[1726662014124,1.5246678,59871.0,59870.0,0.04926]
[1726662014250,1.5246678,59871.0,59866.0,0.00082]
[1726662014251,1.49625065,59867.0,59866.0,0.00082]
[1726662014435,1.99337732,59867.0,59866.0,0.00082]
[1726662014666,2.00540541,59867.0,59866.0,0.00082]
[1726662017382,1.42272965,59858.0,59857.0,0.00082]
[1726662017609,1.50112965,59858.0,59857.0,0.00082]
[1726662018066,1.66418332,59858.0,59857.0,0.00082]
[1726662018291,1.66598076,59858.0,59857.0,0.00082]
[1726662018989,1.51148511,59858.0,59857.0,0.00082]
[1726662021147,1.84560911,59858.0,59857.0,0.00082]
[1726662021412,2.00010476,59858.0,59857.0,0.00082]
[1726662023682,2.00010476,59858.0,59857.0,0.00182]
[1726662024099,2.00010476,59858.0,59857.0,0.00082]
[1726662024349,1.84560911,59858.0,59857.0,0.00182]
[1726662025996,1.51148511,59858.0,59857.0,0.00182]
[1726662027253,1.02427097,59858.0,59857.0,0.00082]
[1726662027513,1.02427097,59858.0,59857.0,0.00182]
[1726662028132,1.02427097,59858.0,59857.0,0.00082]
[1726662031751,1.18175315,59858.0,59857.0,0.00082]
[1726662032041,1.67893082,59858.0,59857.0,0.00082]
[1726662036985,1.52443517,59858.0,59857.0,0.00082]
[1726662039090,1.55064969,59858.0,59857.0,0.00082]
[1726662039306,1.88477369,59858.0,59857.0,0.00082]
[1726662039820,1.85855917,59858.0,59857.0,0.00082]
[1726662040968,1.52443517,59858.0,59857.0,0.00082]
[1726662043484,1.85855917,59858.0,59857.0,0.00082]
[1726662043738,1.52443517,59858.0,59857.0,0.00082]
[1726662043957,1.85855917,59858.0,59857.0,0.00082]
[1726662046075,1.52443517,59858.0,59857.0,0.00082]
[1726662048329,1.5506499,59858.0,59857.0,0.00082]
[1726662048758,1.5506499,59858.0,59857.0,0.01082]
[1726662049411,1.56608635,59858.0,59857.0,0.01082]
[1726662053557,1.02854762,59858.0,59857.0,0.01082]
[1726662054273,1.51716727,59858.0,59857.0,0.01082]
[1726662054636,1.60836727,59858.0,59857.0,0.01082]
[1726662055428,0.501387,59834.0,59833.0,0.0956]
[1726662055671,0.501387,59834.0,59833.0,0.08358199]
[1726662055895,0.84913568,59834.0,59833.0,0.08358199]
[1726662056354,1.18339368,59834.0,59833.0,0.08358199]
[1726662056818,0.51487768,59834.0,59833.0,0.08358199]
[1726662057046,0.84913568,59834.0,59833.0,0.09458199]
[1726662057272,0.84913568,59834.0,59833.0,0.08358199]
[1726662057535,0.501478,59823.0,59822.0,0.000821]
[1726662058051,0.51353349,59823.0,59822.0,0.000821]
[1726662058654,0.51353349,59823.0,59822.0,0.000321]
[1726662058898,0.17921449,59823.0,59822.0,0.000321]
[1726662059122,0.51353349,59823.0,59822.0,0.000321]
[1726662059360,1.18353325,59823.0,59822.0,0.000321]
[1726662059823,0.84921425,59823.0,59822.0,0.000321]
[1726662061271,0.87544119,59823.0,59822.0,0.000321]
[1726662061542,0.84921425,59823.0,59822.0,0.08390299]
[1726662062264,0.18057625,59823.0,59822.0,0.000321]
[1726662062496,0.01341725,59823.0,59822.0,0.000321]
[1726662062947,0.18057625,59823.0,59822.0,0.000321]
[1726662063622,0.51489525,59823.0,59822.0,0.08390299]
[1726662063883,0.18057625,59823.0,59822.0,0.08390299]
[1726662064147,0.01341725,59823.0,59822.0,0.08390299]
[1726662064376,0.18057625,59823.0,59822.0,0.08390299]
[1726662064595,0.18057625,59823.0,59822.0,0.08490299]
[1726662064596,0.01341725,59823.0,59822.0,0.08490299]
[1726662064807,0.01341725,59823.0,59822.0,0.25206499]
[1726662065041,0.01341725,59823.0,59822.0,0.58638999]
[1726662065256,0.02622543,59824.0,59823.0,0.167159]
[1726662065504,0.167146,59828.0,59824.0,0.167155]
[1726662065740,0.334231,59839.0,59824.0,0.08358199]
[1726662065990,0.167127,59835.0,59830.0,0.167139]
[1726662066208,0.4772,59841.0,59832.0,0.167133]
[1726662066209,0.167123,59836.0,59832.0,0.167133]
[1726662066473,0.167123,59836.0,59833.0,0.167131]
[1726662066716,0.334231,59839.0,59833.0,0.08358199]
[1726662066960,0.167116,59839.0,59835.0,0.167126]
[1726662067179,0.167116,59839.0,59836.0,0.167123]
[1726662067477,0.167116,59839.0,59836.0,0.08358199]
[1726662067781,0.811419,59841.0,59836.0,0.08358199]
[1726662068130,0.334231,59839.0,59836.0,0.08358199]
[1726662068347,0.167119,59838.0,59836.0,0.08358199]
[1726662068805,0.00163749,59837.0,59836.0,0.08358199]
[1726662069043,0.00163749,59837.0,59836.0,0.58495099]
[1726662069293,0.00163749,59837.0,59836.0,0.91919699]
[1726662069513,0.167101,59844.0,59840.0,0.16711]
[1726662069745,0.167101,59844.0,59836.0,0.41782799]
[1726662069746,0.167101,59844.0,59841.0,0.167107]
[1726662069972,0.167101,59844.0,59839.0,0.501342]
[1726662070694,0.167101,59844.0,59840.0,0.167112]
[1726662070930,0.334194,59846.0,59838.0,0.167115]
[1726662071306,0.167105,59843.0,59839.0,0.167113]
[1726662071912,0.0116991,59842.0,59839.0,0.167113]
[1726662072334,0.0116991,59842.0,59837.0,0.334236]
[1726662072562,0.0116991,59842.0,59841.0,0.167109]
[1726662072792,0.167096,59846.0,59841.0,0.167109]
[1726662073089,0.167095,59846.0,59842.0,0.167106]
[1726662073316,0.167071,59855.0,59851.0,0.167081]
[1726662073544,0.34956145,59858.0,59850.0,0.167084]
[1726662073545,0.33414,59856.0,59850.0,0.167084]
[1726662073780,0.33414,59856.0,59847.0,0.33418]
[1726662073781,0.334142,59855.0,59849.0,0.167086]
[1726662074003,0.167077,59853.0,59850.0,0.167083]
[1726662074244,0.33414,59856.0,59850.0,0.167083]
[1726662074519,0.167078,59853.0,59849.0,0.167087]
[1726662075332,0.334148,59854.0,59849.0,0.001]
[1726662075333,0.167081,59851.0,59849.0,0.001]
[1726662075488,0.167081,59851.0,59848.0,0.167088]
[1726662075715,0.334148,59854.0,59848.0,0.25066999]
[1726662075716,0.167078,59853.0,59848.0,0.25066999]
[1726662075955,0.167078,59853.0,59849.0,0.167086]
[1726662076198,0.02621385,59851.0,59849.0,0.167086]
[1726662076689,0.02621385,59851.0,59848.0,0.08358199]
[1726662076913,0.835435,59849.0,59848.0,0.08358199]
[1726662077140,0.501261,59849.0,59848.0,0.08358199]
[1726662078414,0.835435,59849.0,59848.0,0.08358199]
[1726662078842,0.501261,59849.0,59848.0,0.08358199]
[1726662081458,0.167087,59849.0,59848.0,0.08358199]
[1726662081663,0.501261,59849.0,59848.0,0.08358199]
[1726662082573,0.167087,59849.0,59848.0,0.08358199]
[1726662083046,0.001642,59854.0,59851.0,0.16708]
[1726662083303,0.001642,59854.0,59848.0,0.08358199]
[1726662083524,0.001642,59854.0,59853.0,0.167076]
[1726662084220,0.001642,59854.0,59853.0,0.501228]
[1726662084740,0.001642,59854.0,59853.0,1.169532]
[1726662084774,0.001642,59854.0,59853.0,1.25311399]
[1726662085893,0.001642,59854.0,59853.0,1.25911399]
[1726662086125,0.001642,59854.0,59853.0,1.25311399]
[1726662086404,0.001642,59854.0,59853.0,1.26611399]
[1726662086819,0.001642,59854.0,59853.0,1.25311399]
[1726662087092,0.001642,59854.0,59853.0,1.41616766]
[1726662087331,0.001642,59854.0,59853.0,2.05001966]
[1726662087949,0.001642,59854.0,59853.0,2.11001966]
[1726662087973,0.001642,59854.0,59853.0,2.15998762]
[1726662088295,0.01543645,59858.0,59857.0,1.94307565]
[1726662088515,0.01543645,59858.0,59857.0,2.13963932]
[1726662088742,0.01543645,59858.0,59857.0,2.22322131]
[1726662089431,0.01543645,59858.0,59857.0,2.27309021]
[1726662089937,0.01543645,59858.0,59857.0,2.28709021]
[1726662090137,0.01543645,59858.0,59857.0,2.23722131]
[1726662090373,0.01543645,59858.0,59857.0,2.28709021]
[1726662090651,0.001642,59866.0,59865.0,0.533127]
[1726662090958,0.001642,59866.0,59865.0,1.02605831]
[1726662091288,0.001642,59866.0,59865.0,1.69422831]
[1726662091514,0.001642,59866.0,59865.0,1.79422831]
[1726662092921,0.001642,59866.0,59865.0,1.80822831]
[1726662093650,0.001642,59866.0,59865.0,1.37214331]
[1726662093875,0.001642,59866.0,59865.0,1.37414331]
[1726662094193,0.001642,59866.0,59865.0,1.70822831]
[1726662094846,0.001642,59866.0,59865.0,1.69422831]
[1726662095091,0.001642,59866.0,59865.0,1.80822831]
[1726662095551,0.001642,59866.0,59865.0,1.82222831]
[1726662095782,0.001642,59866.0,59865.0,1.88222831]
[1726662096012,0.001642,59866.0,59865.0,1.89202931]